[Event "79th Armenian-HL-ch Women 2024"]
[Site "Yerevan"]
[Date "2024.01.13"]
[Round "2.4"]
[White "Khachatryan, Anna"]
[Black "Stepanyan, Alvard"]
[Result "1/2-1/2"]
[ECO "E56"]
[WhiteElo "2022"]
[BlackElo "1514"]
[Annotator "NA RC"]
[PlyCount "167"]
[EventDate "2024.01.11"]
[EventType "tourn"]
[EventCountry "ARM"]
[SourceTitle "playchess.com"]
[Source "ChessBase"]
[SourceQuality "1"]
[TimeControl "40/5400+30:1800+30"]

1. d4 {[%emt 0:01:09]} Nf6 {[%emt 0:00:28]} 2. c4 {[%emt 0:00:31]} e6 {[%emt 0:00:08]} 3. Nc3 {[%emt 0:00:07]} Bb4 {[%emt 0:01:04]} 4. e3 {[%emt 0:00:11]} O-O {[%emt 0:01:41]} 5. Bd3 {[%emt 0:00:34]} d5 {[%emt 0:00:58]} 6. Nf3 {[%emt 0:00:58]} c5 {[%emt 0:01:27]} 7. O-O {[%emt 0:00:27]} Nc6 {[%emt 0:02:14]} 8. cxd5 {[%emt 0:00:19]} exd5 {[%emt 0:01:55]} 9. dxc5 {[%emt 0:00:06]} Bxc5 {[%emt 0:06:25]} 10. h3 {[%emt 0:00:18]} a6 {[%emt 0:00:22]} 11. b3 {[%emt 0:00:34]} d4 {[%emt 0:08:45]} 12. Na4 {[%emt 0:10:38]} Ba7 {[%emt 0:04:29]} 13. exd4 {[%emt 0:04:55]} Nxd4 {[%emt 0:13:42]} 14. Bb2 {[%emt 0:00:59]} Nxf3+ {[%emt 0:08:19]} 15. Qxf3 {[%emt 0:00:12]} Qd5 {[%emt 0:01:52]} 16. Qxd5 {[%emt 0:05:23]} Nxd5 {[%emt 0:00:07]} 17. Be4 {[%emt 0:13:07]} Be6 {[%emt 0:03:05]} 18. Rfd1 {[%emt 0:02:56]} Rfd8 {[%emt 0:03:28]} 19. Nc3 {[%emt 0:15:51]} Nb4 {[%emt 0:08:37]} 20. Ba3 {[%emt 0:21:05]} Nc6 {[%emt 0:01:35]} 21. Bxc6 {[%emt 0:08:38]} bxc6 {[%emt 0:00:09]} 22. Na4 {[%emt 0:00:13]} Rxd1+ {[%emt 0:06:11]} 23. Rxd1 {[%emt 0:00:04]} Re8 {[%emt 0:00:16]} 24. Bc5 {[%emt 0:03:47]} Bb8 {[%emt 0:05:20]} 25. Bb6 {[%emt 0:02:51]} Bd5 {[%emt 0:03:44]} 26. Nc5 {[%emt 0:00:04]} a5 {[%emt 0:02:49]} 27. Bxa5 {[%emt 0:01:05]} Re2 {[%emt 0:03:10]} 28. Re1 {[%emt 0:00:20]} Rxe1+ 29. Bxe1 {[%emt 0:00:01]} Bd6 {[%emt 0:03:50]} 30. Bb4 {[%emt 0:02:07]} Bxc5 {[%emt 0:04:49]} 31. Bxc5 {[%emt 0:00:02]} g6 {[%emt 0:00:11]} 32. f3 {[%emt 0:00:25]} Kg7 {[%emt 0:00:11]} 33. Kf2 {[%emt 0:01:50]} Kf6 {[%emt 0:01:09]} 34. Ke3 {[%emt 0:00:05]} Ke5 {[%emt 0:01:47]} 35. Bb6 {[%emt 0:00:08]} h5 {[%emt 0:00:29]} 36. Bc7+ {[%emt 0:00:14]} Ke6 {[%emt 0:00:29]} 37. Kd4 {[%emt 0:00:12]} Kd7 {[%emt 0:02:05]} 38. Bf4 {[%emt 0:00:47]} Kc8 {[%emt 0:00:10]} 39. Kc5 {[%emt 0:03:01]} Kb7 {[%emt 0:00:09]} 40. Bg5 {[%emt 0:00:00]} Be6 {[%emt 0:00:00]} 41. Kb4 {[%emt 0:09:20]} Bf5 {[%emt 0:08:48]} 42. Kc3 {[%emt 0:01:29]} Be6 {[%emt 0:02:28]} 43. Bf6 {[%emt 0:01:03]} Bd5 {[%emt 0:00:50]} 44. Kb4 {[%emt 0:04:25]} Be6 {[%emt 0:01:12]} 45. a3 {[%emt 0:00:38]} Bf5 {[%emt 0:00:55]} 46. Kc3 {[%emt 0:02:00]} Be6 {[%emt 0:00:25]} 47. b4 {[%emt 0:00:14]} Bf5 {[%emt 0:01:42]} 48. Kd4 {[%emt 0:03:33]} Be6 {[%emt 0:01:03]} 49. a4 {[%emt 0:07:13]} Bb3 {[%emt 0:07:10]} 50. a5 {[%emt 0:00:04]} Ba4 {[%emt 0:00:10]} 51. Ke3 {[%emt 0:02:31]} Bb5 {[%emt 0:01:30]} 52. h4 {[%emt 0:02:54]} Ba4 {[%emt 0:04:01]} 53. Kf4 {[%emt 0:01:16]} Bd1 {[%emt 0:00:47]} 54. Be7 {[%emt 0:02:08]} Be2 {[%emt 0:01:10]} 55. Kg5 {[%emt 0:00:14]} Bd1 {[%emt 0:02:21]} 56. Kf6 {[%emt 0:01:15]} Bb3 {[%emt 0:00:04]} 57. Bd6 {[%emt 0:00:16]} Bc4 {[%emt 0:01:00]} 58. Kg5 {[%emt 0:00:01]} Be2 {[%emt 0:02:25]} 59. Kf4 {[%emt 0:00:04]} Bd1 {[%emt 0:00:45]} 60. Be5 {[%emt 0:01:28]} Ka6 {[%emt 0:00:24]} 61. g4 {[%emt 0:00:35]} Kb5 {[%emt 0:01:48]} 62. Bd6 {[%emt 0:00:05]} Ka6 {[%emt 0:00:08]} 63. gxh5 {[%emt 0:00:29]} gxh5 {[%emt 0:00:05]} 64. Ke4 {[%emt 0:00:13]} Be2 {[%emt 0:01:14]} 65. f4 {[%emt 0:02:06]} Bd1 {[%emt 0:00:26]} 66. Ke5 {[%emt 0:00:28]} Be2 {[%emt 0:00:52]} 67. Bc5 {[%emt 0:00:05]} Bd1 {[%emt 0:00:06]} 68. Kd6 {[%emt 0:00:03]} Bf3 {[%emt 0:00:22]} 69. Ke7 {[%emt 0:00:08]} Bd5 {[%emt 0:00:11]} 70. Kf6 {[%emt 0:00:26]} Bc4 {[%emt 0:00:58]} 71. Kg5 {[%emt 0:00:04]} Be2 {[%emt 0:00:04]} 72. Bf8 {[%emt 0:02:17]} Bd1 {[%emt 0:00:13]} 73. Kf6 {[%emt 0:00:05]} Bb3 {[%emt 0:00:07]} 74. Ke7 {[%emt 0:00:07]} Bd5 {[%emt 0:00:33]} 75. Kd7 {[%emt 0:00:25]} Bf3 {[%emt 0:00:21]} 76. Be7 {[%emt 0:00:04]} Bg2 {[%emt 0:00:46]} 77. Kd6 {[%emt 0:00:04]} Bf3 {[%emt 0:00:14]} 78. Kc5 {[%emt 0:00:03]} Be4 {[%emt 0:00:33]} 79. Bd8 {[%emt 0:00:37]} Bf3 {[%emt 0:00:13]} 80. f5 {[%emt 0:01:12]} Be4 {[%emt 0:00:21]} 81. Kd6 {[%emt 0:00:21]} Bf3 {[%emt 0:01:03]} 82. Ke5 {[%emt 0:00:33]} Be2 {[%emt 0:01:13]} 83. Kf6 {[%emt 0:00:34]} Bc4 {[%emt 0:00:06]} 84. Ke7 {[%emt 0:00:04]} 1/2-1/2

[Event "79th Armenian-HL-ch Women 2024"]
[Site "Yerevan"]
[Date "2024.01.13"]
[Round "2.5"]
[White "Grigoryan, Arpine"]
[Black "Gaboyan, Susanna"]
[Result "0-1"]
[ECO "B26"]
[WhiteElo "2025"]
[BlackElo "2179"]
[Annotator "ChessBase"]
[PlyCount "86"]
[EventDate "2024.01.11"]
[EventType "tourn"]
[EventCountry "ARM"]
[SourceTitle "playchess.com"]
[Source "ChessBase"]
[SourceQuality "1"]
[TimeControl "40/5400+30:1800+30"]

1. e4 {[%emt 0:00:03]} c5 {[%emt 0:00:39]} 2. Nc3 {[%emt 0:00:20]} e6 {[%emt 0:03:25]} 3. g3 {[%emt 0:03:44]} Nc6 {[%emt 0:00:39]} 4. Bg2 {[%emt 0:00:52]} d6 {[%emt 0:00:15]} 5. d3 {[%emt 0:00:44]} g6 {[%emt 0:00:18]} 6. Be3 {[%emt 0:00:49]} Bg7 {[%emt 0:00:11]} 7. Qd2 {[%emt 0:00:33]} Nd4 {[%emt 0:00:34]} 8. Nge2 {[%emt 0:01:29]} Ne7 {[%emt 0:00:22]} 9. O-O {[%emt 0:03:41]} O-O {[%emt 0:00:26]} 10. Nd1 {[%emt 0:02:34]} Rb8 {[%emt 0:02:43]} 11. Nc1 {[%emt 0:05:42]} b5 {[%emt 0:00:30]} 12. c3 {[%emt 0:00:31]} Ndc6 {[%emt 0:00:10]} 13. Bh6 {[%emt 0:03:53]} b4 {[%emt 0:01:46]} 14. Bxg7 {[%emt 0:02:36]} Kxg7 {[%emt 0:01:34]} 15. Ne3 {[%emt 0:01:38]} a5 {[%emt 0:10:49]} 16. f4 {[%emt 0:07:43]} f5 {[%emt 0:01:12]} 17. g4 {[%emt 0:11:17]} Bd7 {[%emt 0:19:36]} 18. Ne2 {[%emt 0:07:33]} a4 {[%emt 0:10:28]} 19. d4 {[%emt 0:19:07]} fxe4 {[%emt 0:02:31]} 20. Bxe4 {[%emt 0:04:59]} d5 {[%emt 0:00:11]} 21. Bg2 {[%emt 0:00:14]} c4 {[%emt 0:00:33]} 22. f5 {[%emt 0:03:36]} exf5 {[%emt 0:03:38]} 23. Nxd5 {[%emt 0:01:15]} fxg4 {[%emt 0:02:54]} 24. Rxf8 {[%emt 0:04:06]} Qxf8 {[%emt 0:00:11]} 25. Nxb4 {[%emt 0:00:14]} Nxb4 {[%emt 0:02:15]} 26. cxb4 {[%emt 0:00:04]} Nf5 {[%emt 0:00:09]} 27. a3 {[%emt 0:00:06]} Qd6 {[%emt 0:02:12]} 28. Qf4 {[%emt 0:01:57]} Qxf4 {[%emt 0:06:27]} 29. Nxf4 {[%emt 0:00:04]} Re8 {[%emt 0:00:45]} 30. Rc1 {[%emt 0:03:46]} g5 {[%emt 0:08:51]} 31. Nh5+ {[%emt 0:00:30]} Kg6 {[%emt 0:01:01]} 32. Ng3 {[%emt 0:00:04]} Nd6 {[%emt 0:00:20]} 33. Kf2 {[%emt 0:02:22]} h5 {[%emt 0:01:10]} 34. Re1 {[%emt 0:00:16]} h4 {[%emt 0:00:13]} 35. Ne4 {[%emt 0:00:06]} Nf5 {[%emt 0:03:28]} 36. Rd1 {[%emt 0:01:54]} Rf8 {[%emt 0:02:57]} 37. Ke2 {[%emt 0:00:56]} g3 {[%emt 0:01:00]} 38. h3 {[%emt 0:05:50]} g4 {[%emt 0:00:16]} 39. Nc5 {[%emt 0:01:42]} Bc8 {[%emt 0:07:20]} 40. d5 {[%emt 0:00:00]} Nd6 {[%emt 0:00:00]} 41. Rf1 {[%emt 0:10:31]} Rxf1 {[%emt 0:05:39]} 42. Bxf1 {[%emt 0:00:16]} gxh3 {[%emt 0:00:08]} 43. Kf3 {[%emt 0:00:17]} Bg4+ {[%emt 0:02:07]} 0-1

[Event "79th Armenian-HL-ch Women 2024"]
[Site "Yerevan"]
[Date "2024.01.14"]
[Round "3.1"]
[White "Kobak, Polina"]
[Black "Khachatryan, Mariam"]
[Result "1-0"]
[ECO "E73"]
[WhiteElo "2120"]
[BlackElo "1567"]
[Annotator "TA"]
[PlyCount "73"]
[EventDate "2024.01.11"]
[EventType "tourn"]
[EventCountry "ARM"]
[SourceTitle "playchess.com"]
[Source "ChessBase"]
[SourceQuality "1"]
[TimeControl "40/5400+30:1800+30"]

{[%evp 16,73,73,79,94,35,91,83,92,94,91,95,103,96,117,120,142,118,119,118,251,233,245,249,341,309,352,338,357,354,446,350,452,456,453,445,449,452,443,435,482,472,501,499,584,591,657,656,778,758,770,650,769,725,836,792,958,910,1819,1812]} 1. d4 {[%emt 0:00:02]} Nf6 {[%emt 0:00:09]} 2. c4 {[%emt 0:00:05]} g6 {[%emt 0:00:05]} 3. Nc3 {[%emt 0:00:04]} Bg7 {[%emt 0:00:05]} 4. e4 {[%emt 0:00:08]} d6 {[%emt 0:00:36]} 5. Be2 {[%emt 0:00:08]} O-O {[%emt 0:00:26]} 6. Bg5 {[%emt 0:00:20]} c5 {[%emt 0:00:51]} 7. d5 {[%emt 0:00:13]} Na6 {[%emt 0:04:54]} 8. Qd2 {[%emt 0:04:14]} Re8 {[%emt 0:03:28]} 9. Nf3 {[%emt 0:05:59]} Nc7 {[%emt 0:03:36][%cal Ob7b5]} 10. h3 {[%emt 0:02:10] Mistake (0.6)} (10. O-O $16) 10... a6 {[%emt 0:16:20] Mistake (0.6)} ({Black should try} 10... b5 $1 $14) 11. a4 $16 {[%emt 0:00:16] OK} e5 {[%emt 0:02:29] White is better.} 12. O-O {[%emt 0:10:06] OK} Rb8 {[%emt 0:02:28] OK} 13. a5 {[%emt 0:05:39] OK} b5 {[%emt 0:00:53] OK} 14. axb6 {[%emt 0:00:22] Best (Easy)} Na8 {[%emt 0:01:22] [#]} 15. b7 $1 {[%emt 0:02:09][%mdl 512] White is much more active.} Bxb7 {[%emt 0:02:25] OK} 16. Nh2 {[%emt 0:07:45] OK} Qc7 {[%emt 0:06:51] OK} 17. f4 {[%emt 0:08:51][%cal Bf2f4,Bf4f5][%mdl 32] EV=17.12. Goes to f5 (dbg))} Nd7 {[%emt 0:02:52] A mistake that costs the game. Mistake (1.3)} (17... exf4 $16 {was worth a try.} 18. Qxf4 Nxe4) 18. f5 $18 {[%emt 0:02:27] f6 is the strong threat. OK} f6 {[%emt 0:01:10] Black is weak on the light squares. OK} 19. Be3 {[%emt 0:01:26]} g5 {[%emt 0:02:11] [#] Inaccurate} 20. h4 $1 {[%emt 0:01:27][%mdl 512] OK} h6 {[%emt 0:01:10]} 21. Bh5 {[%emt 0:03:15] OK} Nab6 {[%emt 0:07:54]} 22. b3 {[%emt 0:05:33]} Kf8 {[%emt 0:06:58]} 23. Ng4 {[%emt 0:12:00]} Ke7 {[%emt 0:03:37]} 24. Bxe8 {[%emt 0:00:38] OK. White is clearly winning.} Rxe8 {[%emt 0:00:23]} 25. hxg5 {[%emt 0:00:35] OK} hxg5 {[%emt 0:00:06] [#]} 26. Bxg5 $1 {[%emt 0:03:37]} Rg8 {[%emt 0:02:30]} (26... Kd8 27. Rf3) 27. Be3 {[%emt 0:01:25] OK} Qd8 {[%emt 0:01:33]} 28. Kf2 {[%emt 0:03:12]} Bf8 {[%emt 0:01:20]} 29. Qe2 {[%emt 0:00:53] OK} Na8 {[%emt 0:01:34]} 30. Rh1 {[%emt 0:00:57] OK} Nc7 {[%emt 0:03:05]} 31. Rh7+ {[%emt 0:01:22] OK} Rg7 {[%emt 0:00:31] Best} 32. Rah1 {[%emt 0:01:01]} Qe8 {[%emt 0:00:47]} 33. Qf3 {[%emt 0:02:53]} Qf7 {[%emt 0:00:52]} 34. Rh8 {[%emt 0:03:23]} Ba8 {[%emt 0:02:56]} 35. R1h4 {[%emt 0:03:01]} Bb7 {[%emt 0:00:41]} 36. Qh3 {[%emt 0:00:20] Bh6 would now be deadly.} Nb6 {[%emt 0:00:45]} 37. Bh6 {[%emt 0:00:53] Weighted Error Value: White=0.14 (very precise) /Black=0.42.  Mistake:       	White=1     	Black=2      Inaccurate:     	---       	Black=1      OK:         	White=13    	Black=5      Best:        	White=1     	Black=1} 1-0

[Event "79th Armenian-HL-ch Women 2024"]
[Site "Yerevan"]
[Date "2024.01.14"]
[Round "3.2"]
[White "Gaboyan, Susanna"]
[Black "Avetisyan, Mariam"]
[Result "1-0"]
[ECO "A14"]
[WhiteElo "2179"]
[BlackElo "2043"]
[Annotator "TA"]
[PlyCount "75"]
[EventDate "2024.01.11"]
[EventType "tourn"]
[EventCountry "ARM"]
[SourceTitle "playchess.com"]
[Source "ChessBase"]
[SourceQuality "1"]
[TimeControl "40/5400+30:1800+30"]

{[%evp 11,75,8,23,17,17,23,18,27,33,39,10,16,118,111,115,129,122,129,125,118,116,0,0,0,0,0,113,105,114,110,106,81,382,367,489,486,499,483,1111,1090,978,539,553,536,537,514,549,552,527,525,716,721,722,691,795,780,976,942,1033,1033,1363,1247,1266,1196,1500,1288]} 1. c4 {[%emt 0:00:09]} Nf6 {[%emt 0:04:44]} 2. g3 {[%emt 0:00:16]} e6 {[%emt 0:00:56]} 3. Bg2 {[%emt 0:00:10]} d5 {[%emt 0:00:17]} 4. Nf3 {[%emt 0:00:43]} Be7 {[%emt 0:02:56]} 5. O-O {[%emt 0:00:46]} O-O {[%emt 0:00:26]} 6. b3 {[%emt 0:01:04]} dxc4 {[%emt 0:10:29]} 7. bxc4 {[%emt 0:00:32]} c5 {[%emt 0:00:05]} 8. Nc3 {[%emt 0:01:23]} Nc6 {[%emt 0:00:14]} 9. d3 {[%emt 0:00:40] The position is equal.} Rb8 {[%emt 0:04:18]} 10. Nd2 {[%emt 0:03:40]} Qd7 {[%emt 0:05:30]} 11. Qa4 {[%emt 0:06:56] Inhibits b6.} a6 {[%emt 0:01:57]} (11... Qc7 $1 $11 {keeps the balance.}) 12. Bxc6 $1 $16 {[%emt 0:09:35]} bxc6 {[%emt 0:01:06]} 13. Ba3 $1 {[%emt 0:00:07] Dodges Rb4} e5 {[%emt 0:02:18]} 14. Rab1 {[%emt 0:00:15]} Rxb1 {[%emt 0:01:49]} 15. Rxb1 {[%emt 0:02:11][%cal Bf1b1,Bb1b6,Bb6b8][%mdl 32]} Ng4 {[%emt 0:01:17] [#]} 16. Nf3 {[%emt 0:03:07]} (16. Qa5 $1 $16) 16... f5 $11 {[%emt 0:02:50][%cal Oe5e4]} 17. Rb6 {[%emt 0:14:48]} e4 {[%emt 0:13:26]} 18. dxe4 {[%emt 0:00:58]} Nxf2 {[%emt 0:01:17] [#]} 19. exf5 $1 $16 {[%emt 0:08:01]} (19. Kxf2 fxe4 20. Qd1 (20. Nxe4 Qd4+ 21. Ke1 Qxe4 $11) 20... exf3 21. exf3 Qh3 $19) (19. Qxc6 Qxc6 20. Rxc6 Nxe4 $14) 19... Nh3+ {[%emt 0:04:01]} 20. Kg2 {[%emt 0:01:01] White is more active.} Qxf5 {[%emt 0:03:31] aiming for ...Ng5.} 21. Qxc6 {[%emt 0:03:02] And now Nd5 would win.} Qc2 $2 {[%emt 0:11:39][%mdl 8192] Loses the game.} (21... Rd8 $16) 22. Rb8 $18 {[%emt 0:03:35]} (22. Bxc5 Qxc3 (22... Bxc5 $2 23. Qd5+ Kh8 24. Qxc5 $18) 23. Rb8 (23. Bxe7 $2 Qe3 $19) 23... Qxc4 (23... Bxc5 $2 24. Qd5+ Kh8 25. Qxc5 $18) 24. Rxc8 Qxe2+ 25. Kxh3 Qf1+ 26. Kg4 h5+ 27. Kxh5 Qh3+ 28. Nh4 Rxc8 29. Qd5+ Kf8 30. Bxe7+ Kxe7 $15) 22... Nf4+ {[%emt 0:07:24]} 23. gxf4 {[%emt 0:00:19] White is clearly winning.} Bh3+ {[%emt 0:00:13]} 24. Kxh3 {[%emt 0:00:05]} Rxb8 {[%emt 0:02:43]} (24... Qf5+ $142 25. Kg2 Qg4+ 26. Kh1 Rxb8 27. Qd5+ (27. Bxc5 Bxc5 28. Qxc5 Qxf4 $18) (27. Qxa6 Qh3 $18) 27... Kh8) 25. Qe6+ {[%emt 0:00:58]} (25. Bxc5 Qf5+ 26. Kg3 Rc8 (26... Qxc5 27. Nd5 $11) (26... Bxc5 27. Ne5 $11) 27. Qxa6 Bxc5 $17) 25... Kh8 {[%emt 0:01:59]} 26. Qxe7 {[%emt 0:00:36]} Qxc3 {[%emt 0:00:05]} 27. Qe5 {[%emt 0:00:14]} Qxe5 {[%emt 0:00:33]} 28. Nxe5 {[%emt 0:00:06]} Kg8 {[%emt 0:00:09][%cal Bh8g8,Bg8f8,Bf8e8,Be8e7,Be7e6,Be6d6,Bd6d5][%mdl 32]} 29. e3 {[%emt 0:00:38]} Rc8 {[%emt 0:00:47]} 30. Kg3 {[%emt 0:00:09]} Kf8 {[%emt 0:00:30] [#]} 31. Bxc5+ $1 {[%emt 0:00:08]} Ke8 {[%emt 0:00:02]} 32. Bd4 {[%emt 0:00:21]} Ke7 {[%emt 0:00:10]} 33. c5 {[%emt 0:00:09][%cal Bc4c5,Bc5c6,Bc6c7][%mdl 32]} Ke6 {[%emt 0:00:08]} 34. c6 {[%emt 0:00:10]} Kd6 {[%emt 0:00:17]} 35. a4 {[%emt 0:00:14]} Kd5 {[%emt 0:00:44]} 36. Bb6 {[%emt 0:00:20]} g5 {[%emt 0:00:07]} 37. c7 {[%emt 0:00:36]} h5 {[%emt 0:00:22]} 38. Kf3 {[%emt 0:01:23] Weighted Error Value: White=0.23 (precise) /Black=0.37.  Loses game:     	---       	Black=1      Mistake:       	White=1     	Black=3      Inaccurate:     	---       	Black=2      OK:         	White=11    	Black=11     Best:        	White=5     	Black=1      Strong:       	White=3     	---} 1-0

[Event "79th Armenian-HL-ch Women 2024"]
[Site "Yerevan"]
[Date "2024.01.14"]
[Round "3.3"]
[White "Gevorgyan, Maria"]
[Black "Harutyunyan, Meline"]
[Result "0-1"]
[ECO "C00"]
[WhiteElo "2272"]
[BlackElo "1536"]
[Annotator "RC"]
[PlyCount "80"]
[EventDate "2024.01.11"]
[EventType "tourn"]
[EventCountry "ARM"]
[SourceTitle "playchess.com"]
[Source "ChessBase"]
[SourceQuality "1"]
[TimeControl "40/5400+30:1800+30"]

1. e4 {[%emt 0:00:03]} e6 {[%emt 0:00:08]} 2. d3 {[%emt 0:00:05]} d5 {[%emt 0:00:21]} 3. Nd2 {[%emt 0:00:06]} Nf6 {[%emt 0:00:54]} 4. g3 {[%emt 0:00:16]} c5 {[%emt 0:00:11]} 5. Bg2 {[%emt 0:00:05]} Nc6 {[%emt 0:00:19]} 6. Ngf3 {[%emt 0:00:24]} Be7 {[%emt 0:00:14]} 7. O-O {[%emt 0:00:07]} O-O {[%emt 0:00:16]} 8. Re1 {[%emt 0:00:23]} b5 {[%emt 0:00:24]} 9. e5 {[%emt 0:00:22]} Nd7 {[%emt 0:00:09]} 10. Nf1 {[%emt 0:00:04]} Bb7 {[%emt 0:00:48]} 11. h4 {[%emt 0:01:39]} a5 {[%emt 0:08:16]} 12. h5 {[%emt 0:00:15]} h6 {[%emt 0:00:52]} 13. N1h2 {[%emt 0:00:08]} d4 {[%emt 0:06:40]} 14. a3 {[%emt 0:06:10]} Nb6 {[%emt 0:02:40]} 15. Ng4 {[%emt 0:00:20]} Kh7 {[%emt 0:05:28]} 16. Bd2 {[%emt 0:03:37]} Rh8 {[%emt 0:05:01]} 17. Qc1 {[%emt 0:09:47]} Qf8 {[%emt 0:12:41]} 18. Nfh2 {[%emt 0:03:03]} Rg8 {[%emt 0:28:15]} 19. Be4+ {[%emt 0:11:34]} Kh8 {[%emt 0:00:18]} 20. Nf3 {[%emt 0:11:19]} Nd8 {[%emt 0:07:17]} 21. Nxh6 {[%emt 0:04:52]} Bxe4 {[%emt 0:02:44]} 22. Rxe4 {[%emt 0:04:25]} gxh6 {[%emt 0:00:08]} 23. Bxh6 {[%emt 0:00:04]} Qe8 {[%emt 0:00:06]} 24. Qd2 {[%emt 0:07:40]} Nd7 {[%emt 0:02:27]} 25. Kg2 {[%emt 0:03:44]} Nf8 {[%emt 0:03:25]} 26. Rh1 {[%emt 0:07:41]} Nh7 {[%emt 0:00:14]} 27. c3 {[%emt 0:00:07]} Nc6 {[%emt 0:08:07]} 28. cxd4 {[%emt 0:00:52]} Nxd4 {[%emt 0:00:10]} 29. Nh2 {[%emt 0:01:17]} Qc6 {[%emt 0:00:34]} 30. f3 {[%emt 0:04:03]} Nf5 {[%emt 0:00:10]} 31. Bf4 {[%emt 0:00:56]} Rad8 {[%emt 0:02:41]} 32. Rc1 {[%emt 0:04:06]} Qd5 {[%emt 0:01:28]} 33. Qxa5 {[%emt 0:01:34]} Qxd3 {[%emt 0:00:07]} 34. Rc3 {[%emt 0:00:03]} Qb1 {[%emt 0:00:50]} 35. Re2 {[%emt 0:00:04]} Rd1 {[%emt 0:00:32]} 36. Kh3 {[%emt 0:01:01]} Rg1 {[%emt 0:01:01]} 37. Rg2 {[%emt 0:01:52]} Rxg2 {[%emt 0:00:45]} 38. Kxg2 {[%emt 0:00:05]} Qxb2+ {[%emt 0:00:05]} 39. Kh3 {[%emt 0:00:44]} Qf2 {[%emt 0:01:44]} 40. Ng4 {[%emt 0:00:00]} Ng5+ {[%emt 0:00:00]} 0-1

[Event "79th Armenian-HL-ch Women 2024"]
[Site "Yerevan"]
[Date "2024.01.14"]
[Round "3.4"]
[White "Gasparyan, Milena"]
[Black "Khachatryan, Anna"]
[Result "1-0"]
[ECO "B94"]
[WhiteElo "1802"]
[BlackElo "2022"]
[Annotator "NA RC"]
[PlyCount "129"]
[EventDate "2024.01.11"]
[EventType "tourn"]
[EventCountry "ARM"]
[SourceTitle "playchess.com"]
[Source "ChessBase"]
[SourceQuality "1"]
[TimeControl "40/5400+30:1800+30"]

1. e4 c5 {[%emt 0:59:39]} 2. Nf3 d6 {[%emt 0:00:30]} 3. d4 cxd4 {[%emt 0:00:30]} 4. Nxd4 Nf6 {[%emt 0:00:30]} 5. Nc3 a6 {[%emt 0:00:30]} 6. Bg5 Nbd7 {[%emt 0:00:30]} 7. Bd3 Qa5 {[%emt 0:00:30]} 8. Be3 g6 {[%emt 0:00:30]} 9. O-O Bg7 {[%emt 0:00:30]} 10. h3 O-O {[%emt 0:00:30]} 11. Qd2 Qc7 {[%emt 0:00:30]} 12. Bh6 Ne5 {[%emt 0:00:30]} 13. Bxg7 Kxg7 {[%emt 0:00:30]} 14. f4 Qc5 {[%emt 0:00:30]} 15. Qf2 {[%emt 0:59:28]} Nc6 {[%emt 0:00:30]} 16. Nce2 {[%emt 0:00:30]} Nxd4 {[%emt 0:00:30]} 17. Nxd4 {[%emt 0:00:30]} e5 {[%emt 0:00:30]} 18. fxe5 {[%emt 0:00:30]} Qxe5 {[%emt 0:00:30]} 19. c3 {[%emt 0:00:30]} Be6 {[%emt 0:00:30]} 20. Rae1 {[%emt 0:00:30]} Nd7 {[%emt 0:00:30]} 21. b3 {[%emt 0:00:30]} Rac8 {[%emt 0:00:30]} 22. c4 {[%emt 0:00:30]} Kg8 {[%emt 0:00:30]} 23. Kh1 {[%emt 0:00:30]} Qc5 {[%emt 0:00:30]} 24. Rd1 {[%emt 0:00:30]} Rce8 {[%emt 0:00:30]} 25. Bb1 {[%emt 0:00:30]} Rd8 {[%emt 0:00:30]} 26. Qh4 {[%emt 0:00:30]} Rfe8 {[%emt 0:00:30]} 27. Nf5 {[%emt 0:00:30]} Bxf5 {[%emt 0:00:30]} 28. exf5 {[%emt 0:00:30]} Qe5 {[%emt 0:00:30]} 29. Rd5 {[%emt 0:00:30]} Qe2 {[%emt 0:00:30]} 30. Bd3 {[%emt 0:00:30]} Qe7 {[%emt 0:00:30]} 31. Qxe7 {[%emt 0:00:30]} Rxe7 {[%emt 0:00:30]} 32. Rxd6 {[%emt 0:00:30]} Ree8 {[%emt 0:00:30]} 33. fxg6 {[%emt 0:00:30]} hxg6 {[%emt 0:00:30]} 34. Rd1 {[%emt 0:00:30]} Nc5 {[%emt 0:00:30]} 35. Rxd8 {[%emt 0:00:30]} Rxd8 {[%emt 0:00:30]} 36. Be2 {[%emt 0:00:30]} Rc8 {[%emt 0:00:30]} 37. Bf3 {[%emt 0:00:30]} a5 {[%emt 0:00:30]} 38. Rd6 {[%emt 0:00:30]} a4 {[%emt 0:00:30]} 39. b4 {[%emt 0:00:30]} Ne6 {[%emt 0:00:30]} 40. c5 {[%emt 0:00:30]} Rc7 {[%emt 0:00:30]} 41. Rb6 {[%emt 0:30:30]} Nd8 {[%emt 0:30:30]} 42. Rb5 {[%emt 0:00:30]} Kf8 {[%emt 0:00:30]} 43. Ra5 {[%emt 0:00:30]} Ke7 {[%emt 0:00:30]} 44. Rxa4 {[%emt 0:00:30]} Kd7 {[%emt 0:00:30]} 45. Ra3 {[%emt 0:00:30]} Rc8 {[%emt 0:00:30]} 46. Rd3+ {[%emt 0:00:30]} Kc7 {[%emt 0:00:30]} 47. Bd5 {[%emt 0:00:30]} Ra8 {[%emt 0:00:30]} 48. Rf3 {[%emt 0:00:30]} f5 {[%emt 0:00:30]} 49. Rg3 {[%emt 0:00:30]} Ra6 {[%emt 0:00:30]} 50. Bc4 {[%emt 0:00:30]} Rf6 {[%emt 0:00:30]} 51. b5 {[%emt 0:00:30]} f4 {[%emt 0:00:30]} 52. Rd3 {[%emt 0:00:30]} Rf5 {[%emt 0:00:30]} 53. Bd5 {[%emt 0:00:30]} Re5 {[%emt 0:00:30]} 54. Kg1 {[%emt 0:00:30]} Re2 {[%emt 0:00:30]} 55. b6+ {[%emt 0:00:30]} Kc8 {[%emt 0:00:30]} 56. Bf3 {[%emt 0:00:30]} Re8 {[%emt 0:00:30]} 57. Rd6 {[%emt 0:00:30]} g5 {[%emt 0:00:30]} 58. Rg6 {[%emt 0:00:30]} Nf7 {[%emt 0:00:30]} 59. Rg7 {[%emt 0:00:30]} Nd8 {[%emt 0:00:30]} 60. Rxg5 {[%emt 0:00:30]} Re1+ {[%emt 0:00:30]} 61. Kf2 {[%emt 0:00:30]} Re3 {[%emt 0:00:30]} 62. Bg4+ {[%emt 0:00:30]} Kb8 {[%emt 0:00:30]} 63. Rg8 {[%emt 0:00:30]} Rd3 {[%emt 0:00:30]} 64. h4 {[%emt 0:00:30]} f3 {[%emt 0:00:30]} 65. gxf3 {[%emt 0:00:30]} 1-0